[Event "Reykjavik Open 2024"]
[Site "Reykjavik"]
[Date "2024.03.16"]
[Round "2.41"]
[White "Lu, Maximillian"]
[Black "Gurner, Jem"]
[Result "1-0"]
[ECO "A05"]
[WhiteElo "2375"]
[BlackElo "1968"]
[Annotator "TA"]
[PlyCount "85"]
[EventDate "2024.03.12"]
[EventCountry "ISL"]
[SourceTitle "playchess.com"]
[Source "ChessBase"]
[SourceQuality "1"]
[TimeControl "40/5400+30:1800+30"]

{[%evp 9,85,4,8,8,7,-36,-5,-3,0,0,0,-4,0,0,22,14,28,25,41,0,49,30,27,0,28,5,3,4,0,8,21,29,23,16,26,15,17,22,36,24,57,46,96,97,96,93,85,75,117,116,108,120,127,127,127,127,210,208,430,418,378,381,1103,983,897,1115,992,1000,29965,29968,29966,29969,29967,29969,29969,29970,29965,29966]} 1. a3 {[%emt 0:03:37]} Nf6 {[%emt 0:01:00]} 2. Nf3 {[%emt 0:00:07]} g6 {[%emt 0:00:26]} 3. b4 {[%emt 0:00:29]} Bg7 {[%emt 0:00:45]} 4. Bb2 {[%emt 0:00:02]} d5 {[%emt 0:00:24]} 5. e3 {[%emt 0:01:10]} O-O {[%emt 0:00:48]} 6. Be2 {[%emt 0:00:06]} a5 {[%emt 0:01:23]} 7. d4 {[%emt 0:04:25]} c6 {[%emt 0:03:00]} 8. Nbd2 {[%emt 0:00:55] The position is equal.} axb4 {[%emt 0:02:35]} 9. axb4 {[%emt 0:00:05]} Rxa1 {[%emt 0:00:08]} 10. Qxa1 {[%emt 0:01:15]} Bf5 {[%emt 0:03:35]} 11. c4 {[%emt 0:00:44]} Ne4 {[%emt 0:16:04]} 12. O-O {[%emt 0:05:03]} Nxd2 {[%emt 0:09:24]} 13. Nxd2 {[%emt 0:00:02]} Nd7 {[%emt 0:00:32]} 14. Nb3 {[%emt 0:02:12]} Qa8 {[%emt 0:05:01]} (14... dxc4 $11 {was preferrable.} 15. Na5 Bd3 16. Nxb7 Qb6 17. Bxd3 cxd3) 15. cxd5 {[%emt 0:37:53]} cxd5 {[%emt 0:00:37]} 16. Rc1 {[%emt 0:00:27]} Nb6 {[%emt 0:08:59]} 17. Qxa8 {[%emt 0:11:07]} Rxa8 {[%emt 0:01:07]} 18. Na5 {[%emt 0:02:20]} Na4 {[%emt 0:04:25]} 19. Ba3 {[%emt 0:00:51]} e5 {[%emt 0:04:58]} 20. Bb5 {[%emt 0:02:06]} (20. Nxb7 exd4 21. exd4 Bxd4 $17) 20... Nb6 {[%emt 0:08:10]} 21. Bb2 {[%emt 0:00:16]} exd4 {[%emt 0:01:09]} 22. Bxd4 {[%emt 0:01:23]} Bxd4 {[%emt 0:00:30]} 23. exd4 {[%emt 0:00:01][%cal Of2f3]} Rc8 {[%emt 0:00:22]} 24. Rc5 {[%emt 0:00:09]} Ra8 {[%emt 0:06:03]} 25. h4 {[%emt 0:01:36]} (25. Nxb7 $2 Ra1+ 26. Bf1 Bd3 $19) 25... Nc4 {[%emt 0:05:41] Black is now going downhill.} 26. Nxb7 $16 {[%emt 0:11:28]} Ra1+ {[%emt 0:01:08]} 27. Kh2 {[%emt 0:00:01]} Rb1 {[%emt 0:00:42]} 28. Na5 {[%emt 0:06:08]} Rxb4 {[%emt 0:07:51]} 29. Nc6 {[%emt 0:01:18]} (29. Bxc4 dxc4 30. Rxc4 (30. Nxc4 Be6 $11) 30... Rb2 $14) 29... Rb2 {[%emt 0:01:42] [#]} 30. Ne7+ $1 {[%emt 0:00:37]} (30. Rxd5 $6 Nb6 31. Rc5 Nd7 32. Rxf5 gxf5 33. Ne7+ Kf8 34. Bxd7 Kxe7 35. Bxf5 h6 $15 (35... Rxf2 36. Bxh7 Rf4 37. Kh3 $11)) 30... Kf8 {[%emt 0:01:26]} 31. Nxf5 {[%emt 0:00:05]} (31. Nxd5 Nd6 32. Bc6 Rxf2 $15) 31... gxf5 {[%emt 0:00:16]} 32. Rxd5 {[%emt 0:00:21][%mdl 4096] Endgame. KRB-KRN} Na3 {[%emt 0:00:23] [#]} (32... Nd6 $16 {is a better defense.}) 33. Bd3 $1 $18 {[%emt 0:00:22]} Rxf2 $2 {[%emt 0:00:35]} (33... Rd2) 34. Ra5 {[%emt 0:01:19]} (34. Bxf5 h6 $14) (34. Rxf5 Rd2 35. Rf3 Nc2 $14) 34... Nc2 {[%emt 0:01:55]} 35. Ra2 {[%emt 0:00:52]} ({Stronger than} 35. Bxf5 Ne3 36. Ra8+ Kg7 $11) ({Inferior is} 35. Rxf5 Rxf5 36. Bxf5 Nxd4 37. Bxh7 f5 $11) 35... Rxg2+ $2 {[%emt 0:00:14]} (35... Rf4 36. g3 (36. Rxc2 Rxh4+ 37. Kg1 Rxd4 $18) 36... Rxd4 37. Bxc2 Rd2+ 38. Kh3 Rf2) 36. Kxg2 {[%emt 0:00:02]} Ne1+ {[%emt 0:00:07]} 37. Kg3 {[%emt 0:01:56]} Nxd3 {[%emt 0:00:05] KR-KN} 38. Rd2 {[%emt 0:00:35]} Nc1 {[%emt 0:02:09]} 39. Kf4 {[%emt 0:00:20] White mates.} Nb3 {[%emt 0:00:35]} 40. Rd3 {[%emt 0:00:24]} Na5 {[%emt 0:01:12]} 41. Rc3 {[%emt 0:31:08]} Ke7 {[%emt 0:31:53]} 42. Kxf5 {[%emt 0:00:19]} Kd6 {[%emt 0:00:00]} 43. Kf6 {[%emt 0:00:00] Weighted Error Value: White=0.05 (flawless) /Black=0.41.  Mistake:       	---       	Black=5      Inaccurate:     	White=3     	Black=4      OK:         	White=10    	Black=10     Best:        	White=2     	Black=1      Strong:       	White=2     	---} 1-0

[Event "Reykjavik Open 2024"]
[Site "Reykjavik"]
[Date "2024.03.16"]
[Round "2.42"]
[White "Prado, Alexandra"]
[Black "Gulbinski, Michal"]
[Result "1/2-1/2"]
[ECO "B13"]
[WhiteElo "1877"]
[BlackElo "1671"]
[Annotator "NA RC"]
[PlyCount "182"]
[EventDate "2024.03.12"]
[EventCountry "ISL"]
[SourceTitle "playchess.com"]
[Source "ChessBase"]
[SourceQuality "1"]
[TimeControl "40/5400+30:1800+30"]

1. e4 {[%emt 0:00:16]} c6 {[%emt 0:00:01]} 2. d4 {[%emt 0:01:07]} d5 {[%emt 0:00:03]} 3. exd5 {[%emt 0:00:38]} cxd5 {[%emt 0:00:02]} 4. Bd3 {[%emt 0:00:15]} Nf6 {[%emt 0:00:28]} 5. c3 {[%emt 0:00:17]} Nc6 {[%emt 0:00:41]} 6. Bf4 {[%emt 0:00:30]} Bg4 {[%emt 0:00:57]} 7. Qb3 {[%emt 0:00:58]} Qb6 {[%emt 0:00:06]} 8. Qxb6 {[%emt 0:06:01] B13: Caro-Kann: Exchange Variation and Panov-Botvinnik Attack.} axb6 {[%emt 0:00:08]} 9. Nd2 {[%emt 0:01:28]} e6 {[%emt 0:00:22]} 10. Ngf3 {[%emt 0:00:52]} Be7 {[%emt 0:02:25]} 11. O-O {[%emt 0:04:15]} O-O {[%emt 0:00:12]} 12. Rfe1 {[%emt 0:04:18]} Rfc8 {[%emt 0:03:04]} 13. h3 {[%emt 0:07:03]} Bh5 {[%emt 0:00:59]} 14. Ne5 {[%emt 0:03:22]} Nxe5 {[%emt 0:00:51]} 15. Bxe5 {[%emt 0:05:53]} Bg6 {[%emt 0:00:23]} 16. Bf1 {[%emt 0:01:45]} h6 {[%emt 0:00:30]} 17. g4 {[%emt 0:00:53]} Ne4 {[%emt 0:01:34]} 18. Nf3 {[%emt 0:08:19]} Bh7 {[%emt 0:10:53]} 19. a3 {[%emt 0:04:09]} Nd6 {[%emt 0:05:32]} 20. Nd2 {[%emt 0:06:52]} Bf8 {[%emt 0:32:04]} 21. Bh2 {[%emt 0:11:16]} Rd8 {[%emt 0:01:56]} 22. f4 {[%emt 0:02:21]} Ne4 {[%emt 0:01:14]} 23. Nf3 {[%emt 0:11:54]} Rac8 {[%emt 0:00:10]} 24. Rad1 {[%emt 0:01:26]} Bd6 {[%emt 0:01:30]} 25. Bd3 {[%emt 0:02:12]} f5 {[%emt 0:01:17]} 26. g5 {[%emt 0:02:31]} Bg6 {[%emt 0:00:25]} 27. h4 {[%emt 0:08:18]} Bh5 {[%emt 0:00:08]} 28. Be2 {[%emt 0:00:22]} Bg4 {[%emt 0:02:39]} 29. Ne5 {[%emt 0:01:17]} Bxe2 {[%emt 0:00:09]} 30. Rxe2 {[%emt 0:00:09]} Bxe5 {[%emt 0:00:14]} 31. dxe5 {[%emt 0:00:40]} hxg5 {[%emt 0:00:29]} 32. hxg5 {[%emt 0:00:32]} g6 {[%emt 0:00:01]} 33. Re3 {[%emt 0:02:32]} Kg7 {[%emt 0:00:13]} 34. Red3 {[%emt 0:00:58]} b5 {[%emt 0:00:10]} 35. Rd4 {[%emt 0:00:20]} Rc4 {[%emt 0:00:18]} 36. Kg2 {[%emt 0:00:29]} Rh8 {[%emt 0:00:46]} 37. Bg3 {[%emt 0:00:58]} Kf7 {[%emt 0:01:00]} 38. Rc1 {[%emt 0:01:32]} Rhc8 {[%emt 0:01:06]} 39. Rcd1 {[%emt 0:00:17]} Rh8 {[%emt 0:00:09]} 40. Ra1 {[%emt 0:00:40]} Rxd4 {[%emt 0:01:31]} 41. cxd4 {[%emt 0:30:00]} Rc8 {[%emt 0:30:07]} 42. Be1 {[%emt 0:23:31]} Rc4 {[%emt 0:00:00]} 43. Rd1 {[%emt 0:00:00]} Ke8 {[%emt 0:00:00]} 44. Bb4 {[%emt 0:00:00]} Rc2+ {[%emt 0:00:00]} 45. Kf3 {[%emt 0:00:00]} Rxb2 {[%emt 0:00:00]} 46. Rc1 {[%emt 0:00:00]} Kd7 {[%emt 0:01:30]} 47. Ke3 {[%emt 0:00:00]} b6 {[%emt 0:00:34]} 48. Kd3 {[%emt 0:00:00]} Rh2 {[%emt 0:03:39]} 49. Bf8 {[%emt 0:00:00]} Rh3+ {[%emt 0:00:50]} 50. Ke2 {[%emt 0:00:00]} Rc3 {[%emt 0:01:24]} 51. Ra1 {[%emt 0:00:00]} Rc4 {[%emt 0:00:15]} 52. Kd3 {[%emt 0:00:00]} Ng3 {[%emt 0:01:45]} 53. Bb4 {[%emt 0:00:00]} Nh5 {[%emt 0:00:20]} 54. Rf1 {[%emt 0:00:00]} Rc8 {[%emt 0:01:01]} 55. Bd6 {[%emt 0:01:20]} Rc4 {[%emt 0:00:20]} 56. Bb4 {[%emt 0:00:00]} Kc6 {[%emt 0:00:11]} 57. Rf3 {[%emt 0:00:00]} Kb7 {[%emt 0:00:06]} 58. Bd2 {[%emt 0:00:00]} Ka6 {[%emt 0:00:08]} 59. Bb4 {[%emt 0:00:00]} Rc1 {[%emt 0:00:04]} 60. Kd2 $17 {[%emt 0:00:00]} Rc4 {[%emt 0:07:40]} 61. Ke3 {[%emt 0:00:00]} Kb7 {[%emt 0:00:24]} 62. Kd3 {[%emt 0:00:00]} Rc1 {[%emt 0:00:30]} 63. Kd2 {[%emt 0:00:00]} Rg1 {[%emt 0:01:14]} 64. Ke2 {[%emt 0:00:00]} Rg2+ {[%emt 0:00:18]} 65. Kf1 {[%emt 0:00:00]} Rg4 {[%emt 0:00:30]} 66. Bd2 {[%emt 0:00:00]} Ng3+ {[%emt 0:00:41]} 67. Ke1 {[%emt 0:00:00]} Ne4 {[%emt 0:00:04]} 68. Bb4 {[%emt 0:00:00]} Rh4 {[%emt 0:00:37]} 69. Kd1 {[%emt 0:00:00]} Rh2 {[%emt 0:00:20]} 70. Kc1 {[%emt 0:00:00]} Kc6 {[%emt 0:00:30]} 71. Kb1 {[%emt 0:00:00]} Kd7 {[%emt 0:02:13]} 72. Ka1 {[%emt 0:00:00]} Rf2 {[%emt 0:02:15]} 73. Rh3 {[%emt 0:00:00]} Rxf4 {[%emt 0:00:07]} 74. Rh7+ {[%emt 0:00:00]} Kc8 {[%emt 0:00:58]} 75. Rh8+ {[%emt 0:00:00]} Kd7 {[%emt 0:00:25]} 76. Rh7+ {[%emt 0:00:00]} Kc6 {[%emt 0:02:03]} 77. Rg7 {[%emt 0:00:00]} Nxg5 {[%emt 0:01:14]} 78. Rxg6 {[%emt 0:00:00]} Rg4 {[%emt 0:00:28]} 79. Bf8 {[%emt 0:00:00]} Kd7 {[%emt 0:02:15]} 80. Rg7+ {[%emt 0:00:00]} Ke8 {[%emt 0:04:55]} 81. Bd6 {[%emt 0:00:00]} Nf3 {[%emt 0:00:59]} 82. Re7+ {[%emt 0:00:00]} Kd8 {[%emt 0:00:03]} 83. Rxe6 {[%emt 0:00:00]} Nxd4 {[%emt 0:00:05]} 84. Rf6 {[%emt 0:00:00]} Re4 {[%emt 0:00:35]} 85. Rf8+ {[%emt 0:00:00]} Kd7 {[%emt 0:00:08]} 86. Rf7+ {[%emt 0:00:00]} Kc8 {[%emt 0:01:25]} 87. Kb2 {[%emt 0:00:00]} f4 {[%emt 0:01:29]} 88. Rf8+ {[%emt 0:00:00]} Kd7 {[%emt 0:00:13]} 89. Rf7+ {[%emt 0:00:00]} Kc8 {[%emt 0:00:21]} 90. Rf8+ {[%emt 0:00:00]} Kd7 {[%emt 0:00:54]} 91. Rf7+ {[%emt 0:00:00]} Kc8 {[%emt 0:00:10]} 1/2-1/2

[Event "Reykjavik Open 2024"]
[Site "Reykjavik"]
[Date "2024.03.16"]
[Round "2.43"]
[White "Belenkaya, Dina"]
[Black "Hill, Andy"]
[Result "1-0"]
[ECO "E90"]
[WhiteElo "2164"]
[BlackElo "1926"]
[Annotator "RC"]
[PlyCount "89"]
[EventDate "2024.03.12"]
[EventCountry "ISL"]
[SourceTitle "playchess.com"]
[Source "ChessBase"]
[SourceQuality "1"]
[TimeControl "40/5400+30:1800+30"]

1. d4 {[%emt 0:05:52]} Nf6 {[%emt 0:00:09]} 2. c4 {[%emt 0:00:08]} g6 {[%emt 0:00:08]} 3. Nc3 {[%emt 0:00:04]} Bg7 {[%emt 0:00:05]} 4. e4 {[%emt 0:00:04]} d6 {[%emt 0:00:04]} 5. Nf3 {[%emt 0:00:04]} O-O {[%emt 0:00:17]} 6. Bd3 {[%emt 0:00:03]} Nbd7 {[%emt 0:04:55]} 7. O-O {[%emt 0:14:19]} e5 {[%emt 0:01:50]} 8. d5 {[%emt 0:01:40]} c5 {[%emt 0:05:27]} 9. dxc6 {[%emt 0:08:50]} bxc6 {[%emt 0:00:03]} 10. Bc2 {[%emt 0:00:42]} Qc7 {[%emt 0:04:31]} 11. b3 {[%emt 0:01:30]} Rd8 {[%emt 0:01:35]} 12. Bb2 {[%emt 0:02:00]} Nf8 {[%emt 0:05:03]} 13. Rc1 {[%emt 0:07:54]} Bh6 {[%emt 0:03:42]} 14. Nd2 {[%emt 0:06:02]} Ne6 {[%emt 0:07:45]} 15. Bb1 {[%emt 0:08:52]} Qb6 {[%emt 0:08:32]} 16. Qe1 {[%emt 0:06:05]} a5 {[%emt 0:05:42]} 17. Na4 {[%emt 0:00:39]} Qb8 {[%emt 0:02:12]} 18. Rd1 {[%emt 0:01:01]} Nd4 {[%emt 0:06:57]} 19. f4 {[%emt 0:08:23]} Kg7 {[%emt 0:11:49]} 20. Qh4 {[%emt 0:01:18]} Ne2+ {[%emt 0:04:27]} 21. Kh1 {[%emt 0:00:03]} Nxf4 {[%emt 0:00:50]} 22. Nf3 {[%emt 0:01:19]} Bg4 {[%emt 0:02:41]} 23. c5 {[%emt 0:16:29]} Bxf3 {[%emt 0:01:28]} 24. Rxf3 {[%emt 0:00:19]} g5 {[%emt 0:06:14]} 25. Qg3 {[%emt 0:01:00]} dxc5 {[%emt 0:04:56]} 26. Rdf1 {[%emt 0:00:23]} Qd6 {[%emt 0:00:59]} 27. Nb6 {[%emt 0:01:01]} N6h5 {[%emt 0:02:18]} 28. Qg4 {[%emt 0:00:42]} Ra7 {[%emt 0:04:15]} 29. Nc4 {[%emt 0:01:53]} Qe6 {[%emt 0:01:48]} 30. Nxe5 {[%emt 0:00:50]} Kg8 {[%emt 0:01:24]} 31. Qxe6 {[%emt 0:03:20]} fxe6 {[%emt 0:00:35]} 32. g3 {[%emt 0:00:52]} Ng6 {[%emt 0:02:30]} 33. Nxc6 {[%emt 0:00:09]} g4 {[%emt 0:00:15]} 34. R3f2 {[%emt 0:00:23]} Rad7 {[%emt 0:00:10]} 35. Nxd8 {[%emt 0:00:12]} Rxd8 {[%emt 0:00:02]} 36. Bc3 {[%emt 0:00:30]} Be3 {[%emt 0:00:58]} 37. Re2 {[%emt 0:00:17]} Bd4 {[%emt 0:00:13]} 38. Bxa5 {[%emt 0:00:45]} Ra8 {[%emt 0:00:05]} 39. Bc7 {[%emt 0:00:16]} Rc8 {[%emt 0:00:27]} 40. Bd6 {[%emt 0:00:23]} e5 {[%emt 0:01:51]} 41. b4 {[%emt 0:30:54]} c4 {[%emt 0:30:31]} 42. b5 {[%emt 0:00:20]} Ng7 {[%emt 0:00:40]} 43. a4 {[%emt 0:00:15]} Ne8 {[%emt 0:01:05]} 44. Bb4 {[%emt 0:00:12]} Rb8 {[%emt 0:00:20]} 45. Ba2 {[%emt 0:00:05]} 1-0

[Event "Reykjavik Open 2024"]
[Site "Reykjavik"]
[Date "2024.03.16"]
[Round "2.45"]
[White "Kazarian, Anna-Maja"]
[Black "Kjartansson, Gudmundur"]
[Result "0-1"]
[ECO "C54"]
[WhiteElo "2206"]
[BlackElo "2465"]
[Annotator "RC"]
[PlyCount "96"]
[EventDate "2024.03.12"]
[EventCountry "ISL"]
[SourceTitle "playchess.com"]
[Source "ChessBase"]
[SourceQuality "1"]
[TimeControl "40/5400+30:1800+30"]

1. e4 {[%emt 0:00:02]} e5 {[%emt 0:00:14]} 2. Nf3 {[%emt 0:00:09]} Nc6 {[%emt 0:00:06]} 3. Bc4 {[%emt 0:00:53]} Nf6 {[%emt 0:00:11]} 4. d3 {[%emt 0:00:03]} Bc5 {[%emt 0:00:49]} 5. O-O {[%emt 0:00:19]} O-O {[%emt 0:00:47]} 6. c3 {[%emt 0:00:04]} d6 {[%emt 0:01:27]} 7. a4 {[%emt 0:01:00]} a6 {[%emt 0:03:02]} 8. h3 {[%emt 0:04:41]} h6 {[%emt 0:03:29]} 9. Re1 {[%emt 0:03:29]} Re8 {[%emt 0:02:40]} 10. b4 {[%emt 0:03:30]} Ba7 {[%emt 0:10:55]} 11. Qb3 {[%emt 0:06:59]} Be6 {[%emt 0:01:32]} 12. Nbd2 {[%emt 0:07:20]} d5 {[%emt 0:12:37]} 13. exd5 {[%emt 0:00:39]} Bxd5 {[%emt 0:00:58]} 14. Bxd5 {[%emt 0:23:27]} Qxd5 {[%emt 0:01:16]} 15. b5 {[%emt 0:01:58]} Na5 {[%emt 0:05:29]} 16. Qxd5 {[%emt 0:06:03]} Nxd5 {[%emt 0:00:05]} 17. Ba3 {[%emt 0:04:41]} Nf4 {[%emt 0:06:52]} 18. Bb4 {[%emt 0:16:28]} Nxd3 {[%emt 0:03:52]} 19. Bxa5 {[%emt 0:01:02]} Bxf2+ {[%emt 0:00:21]} 20. Kf1 {[%emt 0:00:28]} b6 {[%emt 0:03:27]} 21. Red1 {[%emt 0:06:28]} bxa5 {[%emt 0:15:09]} 22. Ne4 {[%emt 0:03:31]} Bb6 {[%emt 0:00:40]} 23. Rxd3 {[%emt 0:00:25]} f5 {[%emt 0:00:05]} 24. Nfd2 {[%emt 0:07:39]} fxe4 {[%emt 0:00:31]} 25. Nxe4 {[%emt 0:00:02]} Rf8+ {[%emt 0:08:26]} 26. Rf3 {[%emt 0:00:02]} axb5 {[%emt 0:00:17]} 27. axb5 {[%emt 0:00:12]} Rxf3+ {[%emt 0:00:20]} 28. gxf3 {[%emt 0:00:01]} a4 {[%emt 0:00:35]} 29. Ke2 {[%emt 0:01:27]} Kf7 {[%emt 0:00:27]} 30. Kd3 {[%emt 0:01:09]} Ke6 {[%emt 0:00:01]} 31. Ra3 {[%emt 0:01:03]} g5 {[%emt 0:10:17]} 32. c4 {[%emt 0:00:28]} Bd4 {[%emt 0:00:04]} 33. Nc3 {[%emt 0:00:11]} Bxc3 {[%emt 0:01:31]} 34. Kxc3 {[%emt 0:00:04]} c5 {[%emt 0:00:15]} 35. bxc6 {[%emt 0:00:18]} Kd6 {[%emt 0:00:32]} 36. Kb4 {[%emt 0:00:42]} Kxc6 {[%emt 0:00:31]} 37. c5 {[%emt 0:01:28]} h5 {[%emt 0:01:57]} 38. Kc4 {[%emt 0:00:31]} Rf8 {[%emt 0:02:19]} 39. Re3 {[%emt 0:00:19]} Rf4+ {[%emt 0:00:39]} 40. Kd3 {[%emt 0:00:13]} a3 {[%emt 0:01:46]} 41. Rxe5 {[%emt 0:06:43]} a2 {[%emt 0:01:15]} 42. Re6+ {[%emt 0:01:20]} Kb5 {[%emt 0:02:01]} 43. Re1 {[%emt 0:00:36]} Rxf3+ {[%emt 0:00:18]} 44. Kd4 {[%emt 0:00:41]} Rxh3 {[%emt 0:00:10]} 45. Ra1 {[%emt 0:01:21]} Rh2 {[%emt 0:00:25]} 46. Rc1 {[%emt 0:00:26]} Rc2 {[%emt 0:01:01]} 47. Ra1 {[%emt 0:00:15]} Kb4 {[%emt 0:00:23]} 48. c6 {[%emt 0:01:01]} Kb3 {[%emt 0:00:10]} 0-1

[Event "Reykjavik Open 2024"]
[Site "Reykjavik"]
[Date "2024.03.16"]
[Round "3.1"]
[White "Salimova, Nurgyul"]
[Black "Xu, Xiangyu"]
[Result "1/2-1/2"]
[ECO "D02"]
[WhiteElo "2426"]
[BlackElo "2623"]
[Annotator "TA"]
[PlyCount "43"]
[EventDate "2024.03.12"]
[EventCountry "ISL"]
[SourceTitle "playchess.com"]
[Source "ChessBase"]
[SourceQuality "1"]
[TimeControl "40/5400+30:1800+30"]

{[%evp 12,43,1,8,19,-5,0,0,0,0,0,-22,0,0,2,-11,-10,0,-4,-12,-11,-9,-4,-20,0,0,0,0,0,0,0,0,0,0]} 1. Nf3 {[%emt 0:00:03]} g6 {[%emt 0:00:10]} 2. d4 {[%emt 0:00:45]} Nf6 {[%emt 0:00:14]} 3. g3 {[%emt 0:00:22]} Bg7 {[%emt 0:00:34]} 4. Bg2 {[%emt 0:00:07]} d5 {[%emt 0:00:14]} 5. O-O {[%emt 0:00:34]} O-O {[%emt 0:00:09]} 6. c3 {[%emt 0:00:11]} Nc6 {[%emt 0:06:09]} 7. Nbd2 {[%emt 0:06:48] The position is equal.} Re8 {[%emt 0:01:25]} 8. Re1 {[%emt 0:04:20]} e5 {[%emt 0:00:34]} 9. dxe5 {[%emt 0:00:21]} Nxe5 {[%emt 0:00:36]} 10. Nxe5 {[%emt 0:00:50]} Rxe5 {[%emt 0:00:08]} 11. Nb3 {[%emt 0:01:08][%cal Oe2e4]} Re8 {[%emt 0:13:02]} 12. Bg5 {[%emt 0:02:22]} c6 {[%emt 0:00:05] [#]} 13. e4 $1 {[%emt 0:05:45]} dxe4 {[%emt 0:00:32]} 14. Qxd8 {[%emt 0:00:20]} Rxd8 {[%emt 0:00:07]} 15. Rxe4 {[%emt 0:06:38]} h6 {[%emt 0:10:17]} 16. Bxf6 {[%emt 0:00:29]} Bxf6 {[%emt 0:00:07]} 17. Na5 {[%emt 0:04:59][%cal Bb3a5,Ba5c4,Bc4d6,Bd6c8][%mdl 32]} Rd2 {[%emt 0:04:54][%cal Oc8e6]} 18. Re8+ {[%emt 0:03:23]} Kg7 {[%emt 0:00:05][%cal Od2d8]} 19. Nc4 {[%emt 0:00:36]} Rd8 {[%emt 0:00:07]} 20. Rxd8 {[%emt 0:00:22]} Bxd8 {[%emt 0:00:06]} 21. Nd6 {[%emt 0:00:57]} Be7 {[%emt 0:00:12]} 22. Nxc8 {[%emt 0:00:33] An uneventful encounter.   Weighted Error Value: White=0.05 (flawless) /Black=0.05 (flawless) .  OK:         	White=6     	Black=7      Best:        	White=1     	---} 1/2-1/2

[Event "Reykjavik Open 2024"]
[Site "Reykjavik"]
[Date "2024.03.16"]
[Round "3.2"]
[White "Katz, Alexander"]
[Black "Sanal, Vahap"]
[Result "0-1"]
[ECO "C54"]
[WhiteElo "2418"]
[BlackElo "2558"]
[Annotator "TA"]
[PlyCount "64"]
[EventDate "2024.03.12"]
[EventCountry "ISL"]
[SourceTitle "playchess.com"]
[Source "ChessBase"]
[SourceQuality "1"]
[TimeControl "40/5400+30:1800+30"]

{[%evp 14,64,6,6,16,8,18,12,11,0,10,-14,-13,-103,-112,-203,-204,-203,-200,-205,-196,-311,-301,-275,-224,-244,-241,-258,-266,-317,-310,-302,-305,-299,-226,-231,-178,-158,-177,-170,-160,-353,-336,-318,-322,-326,-259,-29995,-29996,-29996,-42,-29997,-29998]} 1. e4 {[%emt 0:00:02]} e5 {[%emt 0:00:07]} 2. Nf3 {[%emt 0:00:14]} Nc6 {[%emt 0:00:08]} 3. Bc4 {[%emt 0:00:35]} Bc5 {[%emt 0:00:11]} 4. c3 {[%emt 0:00:27]} Nf6 {[%emt 0:00:07]} 5. d3 {[%emt 0:00:07]} d6 {[%emt 0:00:48]} 6. Bb3 {[%emt 0:00:16]} h6 {[%emt 0:04:05]} 7. O-O {[%emt 0:01:21]} O-O {[%emt 0:02:49]} 8. h3 {[%emt 0:01:23]} a6 {[%emt 0:00:28]} 9. Nbd2 {[%emt 0:02:07]} Re8 {[%emt 0:00:30]} 10. Re1 {[%emt 0:02:01]} Be6 {[%emt 0:00:57] Die Stellung ist ausgeglichen.} 11. Nf1 {[%emt 0:05:42]} d5 {[%emt 0:01:10]} 12. d4 {[%emt 0:09:33]} dxe4 {[%emt 0:10:29]} 13. dxc5 {[%emt 0:18:07]} (13. Nxe5 $11 {hält das Gleichgewicht.} Bxb3 14. Nxc6 Bxd1 15. Nxd8 Raxd8 16. dxc5 (16. Rxd1 Ba7 $11)) 13... Bxb3 $17 {[%emt 0:05:13]} (13... exf3 14. Qxf3 e4 15. Qg3 $14) 14. Qxb3 {[%emt 0:00:54]} (14. axb3 $17 Qxd1 (14... exf3 15. Qxf3 Qd5 16. Qf5 $11) 15. Rxd1 exf3 16. gxf3) 14... exf3 $19 {[%emt 0:00:16]} 15. gxf3 {[%emt 0:04:26]} Qd7 {[%emt 0:06:03]} 16. Kh2 {[%emt 0:02:02]} Ne7 {[%emt 0:07:59] Ein dynamisches Springerpaar.} 17. Rxe5 {[%emt 0:07:29]} (17. Qc4 $142) 17... Ng6 {[%emt 0:01:36]} 18. Rxe8+ {[%emt 0:00:30]} Rxe8 {[%emt 0:00:08]} ({Schwächer ist} 18... Nxe8 19. Qxb7 Rd8 20. Be3 $11) 19. Be3 {[%emt 0:01:27]} Qc6 {[%emt 0:08:11]} 20. Nd2 {[%emt 0:02:27]} Nd5 {[%emt 0:00:33]} 21. Qc4 {[%emt 0:10:38]} Nxe3 {[%emt 0:03:18]} 22. fxe3 {[%emt 0:00:05]} Rxe3 {[%emt 0:00:13]} 23. Rg1 {[%emt 0:00:46]} Qf6 {[%emt 0:04:16]} 24. Qd4 {[%emt 0:04:04] Wehrt Ne5 ab} Qf4+ {[%emt 0:05:08]} 25. Qxf4 {[%emt 0:02:31]} Nxf4 {[%emt 0:00:03][%mdl 4096] Endspiel. KRN-KRN} 26. Kg3 {[%emt 0:00:48]} g5 {[%emt 0:00:16] [#] Weiss muss nun ...Re2 beachten.} 27. Nc4 $2 {[%emt 0:02:05]} (27. h4 $17) 27... Re2 {[%emt 0:00:19]} 28. Kg4 {[%emt 0:00:41]} Kg7 {[%emt 0:00:30]} 29. Kf5 {[%emt 0:02:36]} Ng6 {[%emt 0:01:15] ...Nh4+ ist eine echte Drohung.} 30. Rd1 $2 {[%emt 0:08:37] [#]} (30. Kg4 $19) 30... Ne7+ {[%emt 0:01:01]} 31. Kg4 {[%emt 0:00:08]} Rg2+ {[%emt 0:00:07]} 32. Kh5 {[%emt 0:00:04]} Ng8 {[%emt 0:00:08] Schwarz nahm nach der Eröffnung die Zügel in die Hand.   Gewichteter Fehlerwert: Weiß=0.59/Schwarz=0.07 (makellos) .  Verlustzug:     	Weiß=1     	---        Fehler:       	Weiß=4     	---        OK:         	Weiß=7     	Schwarz=12    Bester:       	Weiß=3     	Schwarz=5} 0-1